bitfinex/quotes_ETHUSD_20260111
["timestamp","ask_amount","ask_price","bid_price","bid_amount"]
[1768116550308,0.001,3095.1,3094.6,4.21893139]
[1768116550518,0.001,3095.1,3094.7,0.42520477]
[1768116559838,0.001,3095.1,3094.7,1.39572859]
[1768116560334,0.001,3095.1,3094.9,0.002]
[1768116607582,0.001,3095.1,3094.5,0.95658313]
[1768116607754,0.001,3095.1,3094.5,0.00280096]
[1768116608071,0.001,3094.8,3094.5,0.91133818]
[1768116608739,0.001,3094.8,3094.5,1.32584176]
[1768116617278,0.001,3094.8,3094.5,0.41730454]
[1768116646806,0.001,3094.8,3094.5,0.00280096]
[1768116701778,0.9112767,3094.8,3094.5,0.00280096]
[1768116709910,0.9112767,3094.8,3094.3,0.002]
[1768116713805,0.9112767,3094.8,3094.6,0.002]
[1768116713978,0.9112767,3094.8,3094.3,0.002]
[1768116714181,1.32559801,3094.8,3094.3,0.002]
[1768116717013,0.92425087,3094.7,3094.3,0.002]
[1768116725802,0.001,3094.5,3094.3,0.002]
[1768116781609,0.00080096,3094.9,3094.4,0.91146876]
[1768116781881,0.001,3095.1,3094.5,5.42958745]
[1768116782051,0.001,3095.1,3094.6,0.54295874]
[1768116782250,0.95107952,3095.1,3094.6,0.54295874]
[1768116782483,0.95107952,3095.1,3094.5,0.13010588]
[1768116782693,0.001,3095.1,3094.5,1.04157464]
[1768116784498,0.001,3095.1,3094.6,0.002]
[1768116784687,0.001,3094.8,3094.6,0.002]
[1768116785585,0.001,3094.8,3094.6,0.13130484]
[1768116785788,0.001,3094.8,3094.6,0.55882573]
[1768116797475,0.001,3094.8,3094.6,0.42952089]
[1768116840833,0.001,3094.8,3094.6,0.002]
[1768116849932,0.95881887,3095.1,3094.6,0.002]
[1768116853648,0.001,3095.1,3094.6,0.256]
[1768116853837,0.001,3095.1,3094.6,1.18161895]
[1768116855344,0.001,3095.1,3094.9,0.002]
[1768116879751,0.00080112,3095.2,3094.9,0.002]
[1768116880143,0.00080112,3095.2,3094.9,0.2321508]
[1768116881682,0.00080112,3095.2,3094.9,3.46326102]
[1768116884053,0.00080112,3095.2,3094.9,3.4309498]
[1768116885486,0.00080112,3095.2,3095.0,0.03231017]
[1768116888385,0.00080112,3095.2,3095.0,3.26331998]
[1768116888687,0.00080112,3095.2,3095.1,0.34631596]
[1768116900771,0.00080112,3095.2,3095.0,0.03231017]
[1768116901604,0.00080112,3095.2,3094.9,0.19983958]
[1768116904319,0.90205848,3095.1,3094.5,0.00280104]
[1768116904467,0.90205848,3095.1,3094.5,0.25680104]
[1768116907128,0.90205848,3095.0,3094.5,0.25680104]
[1768116907474,3.23112216,3094.9,3094.5,0.25680104]
[1768116907675,4.13318064,3094.9,3094.5,0.25680104]
[1768116909492,0.90205848,3094.7,3094.3,0.002]
[1768116912209,0.90205848,3094.5,3094.1,0.25680072]
[1768116912530,0.90205848,3094.5,3093.9,0.00280096]
[1768116912678,0.9028592,3094.5,3093.9,0.00280096]
[1768116912880,0.90205848,3094.4,3093.9,0.00280096]
[1768116914418,0.90205848,3094.2,3093.9,0.00280096]
[1768116917703,0.90005848,3094.2,3093.9,0.00280096]
[1768116919922,4.13192285,3094.2,3093.9,0.00280096]
[1768116921620,0.90005848,3094.2,3093.9,0.00280096]
[1768116924315,0.89805848,3094.2,3093.9,0.00280096]
[1768116924691,3.23178821,3094.3,3093.9,0.00280096]
[1768116925213,0.00080072,3094.5,3093.9,0.00280096]
[1768116925419,0.00080072,3094.5,3093.9,0.95524264]
[1768116926221,0.00080072,3094.5,3094.2,0.002]
[1768116926422,0.75048312,3094.5,3094.2,0.002]
[1768116927832,0.00080072,3094.5,3094.2,0.002]
[1768116969088,3.23234054,3094.5,3094.2,0.002]
[1768116970885,0.98562615,3094.5,3094.2,0.002]
[1768116973697,4.21724016,3094.5,3094.2,0.002]
[1768116977600,4.21724016,3094.5,3093.9,0.00280096]
[1768116979473,0.00080072,3094.5,3093.9,0.99774706]
[1768116986431,0.00080072,3094.5,3094.2,0.002]
[1768116986582,4.21726806,3094.5,3093.9,0.00280096]
[1768116986877,0.001,3094.2,3093.9,0.00280096]
[1768117003446,0.97895352,3094.2,3093.9,0.00280096]
[1768117003645,0.97695352,3094.2,3093.9,0.00280096]
[1768117008746,3.23173256,3094.4,3093.9,0.00280096]
[1768117010053,3.23173256,3094.4,3094.2,0.002]
[1768117010255,4.95397902,3094.4,3093.9,0.00280096]
[1768117010420,4.20968608,3094.4,3093.9,0.00280096]
[1768117013859,4.16686576,3094.4,3093.9,0.00280096]
[1768117021759,4.16686576,3094.4,3094.2,0.002]
[1768117021960,4.16686576,3094.4,3093.9,0.00280096]
[1768117024167,0.97739463,3094.3,3093.9,0.00280096]
[1768117024669,0.97819559,3094.3,3093.8,0.002]
[1768117027149,4.21002522,3094.3,3093.7,0.00280088]
[1768117027349,3.23263059,3094.3,3093.7,0.00280088]
[1768117029270,6.46446022,3094.3,3093.7,0.00280088]
[1768117029482,6.46446022,3094.3,3093.3,0.002]
[1768117029483,4.51854823,3093.8,3093.3,0.002]
[1768117029787,4.51854823,3093.7,3093.2,0.00280096]
[1768117030151,4.51854823,3093.7,3093.2,0.99241807]
[1768117031966,7.75094457,3093.7,3093.2,0.99241807]
[1768117032966,7.75094457,3093.7,3093.5,0.002]
[1768117033165,7.75094457,3093.7,3093.2,0.99241807]
[1768117035806,7.75094457,3093.7,3093.2,0.00280096]
[1768117035989,10.98334091,3093.7,3093.2,0.00280096]
[1768117036173,4.51934927,3093.4,3092.8,0.00080112]
[1768117036379,4.51734927,3093.4,3092.8,0.25480112]
[1768117036574,4.51734927,3093.4,3092.9,0.98961711]
[1768117038404,8.52513396,3093.4,3092.9,0.98961711]
[1768117038605,4.00858573,3093.4,3092.9,0.98961711]
[1768117038973,4.00858573,3093.4,3092.8,0.25480112]
[1768117039203,4.00858573,3093.4,3092.8,1.24441823]
[1768117039877,3.23350551,3093.4,3092.8,0.99041823]
[1768117040914,3.23150551,3093.4,3092.8,0.99041823]
[1768117041119,3.23150551,3093.4,3093.0,0.00080112]
[1768117041287,3.23150551,3093.4,3092.8,0.99041823]
[1768117041489,3.23230663,3093.4,3092.8,0.99041823]
[1768117045417,0.001,3093.1,3092.8,0.99041823]
[1768117048817,0.001,3093.1,3092.9,0.98961711]
[1768117057240,0.001,3093.1,3092.8,0.00080112]
[1768117057698,0.001,3093.1,3092.8,0.96135884]
[1768117078021,0.001,3093.1,3092.8,0.00080112]
[1768117084167,0.90339798,3093.0,3092.6,0.002]
[1768117084470,1.31713054,3093.0,3092.6,0.002]
[1768117085240,0.90339798,3093.0,3092.6,0.002]
[1768117086258,0.90519942,3093.1,3092.6,0.002]
[1768117088543,4.13822124,3093.1,3092.6,0.002]
[1768117089467,0.90519942,3093.1,3092.6,0.002]
[1768117090667,0.001,3092.8,3092.6,0.002]
[1768117091546,0.90439798,3092.8,3092.4,0.00080096]
[1768117097867,0.001,3092.8,3092.4,0.00080096]
[1768117098071,0.001,3092.8,3092.4,0.76873335]
[1768117102390,0.001,3092.8,3092.7,0.002]
[1768117110785,0.001,3092.8,3092.2,1.21064403]
[1768117110989,4.522467,3092.7,3092.2,0.25480088]
[1768117111173,5.42586498,3092.7,3092.2,0.25480088]
[1768117114086,0.00180096,3092.8,3092.2,0.25480088]
[1768117116883,0.00180096,3092.8,3092.2,1.18572786]
[1768117117087,0.00180096,3092.8,3092.3,0.44205699]
[1768117119211,0.99544681,3092.8,3092.2,0.25480088]
[1768117125916,0.001,3092.5,3092.2,0.25480088]
[1768117127198,0.001,3092.5,3092.2,1.18572786]
[1768117127885,0.001,3092.5,3092.3,0.93092698]
[1768117128614,0.001,3092.5,3092.3,0.96326536]
[1768117129199,0.001,3092.5,3092.4,0.44519925]
[1768117129397,0.00180096,3092.8,3092.5,0.93092698]
[1768117129585,0.00180096,3092.8,3092.5,0.96326327]
[1768117133498,0.00180096,3092.8,3092.5,0.03233629]
[1768117143337,0.00180144,3093.1,3092.8,0.96711213]
[1768117143739,0.00180144,3093.1,3092.7,3.23338269]
[1768117143740,0.00080112,3093.2,3092.9,0.42004948]
[1768117145642,0.00080112,3093.2,3092.9,1.36738171]
[1768117145849,0.00080112,3093.4,3093.0,0.94733223]
[1768117149145,0.001,3093.1,3093.0,4.18043924]
[1768117149448,0.00080112,3093.4,3093.0,3.23310701]
[1768117166833,0.00080112,3093.4,3093.1,0.94733223]
[1768117170371,0.00080112,3093.4,3093.1,4.18027161]
[1768117170534,0.00080112,3093.4,3093.2,0.41802716]
[1768117171065,0.00080096,3093.6,3093.2,0.41802716]
[1768117171371,0.00080072,3093.9,3093.2,1.36616043]
[1768117171548,0.97994955,3093.9,3093.2,0.4188282]
[1768117171751,0.97994955,3093.9,3093.3,0.68847701]
[1768117173484,0.97994955,3093.9,3093.3,3.92126216]
[1768117173849,0.97994955,3093.9,3093.3,0.68847701]
[1768117177370,0.97994955,3093.9,3093.2,3.9056786]
[1768117184640,0.97994955,3093.9,3093.5,0.002]
[1768117184841,0.001,3093.6,3093.5,0.002]
[1768117270349,0.00080072,3093.9,3093.5,0.002]
[1768117271347,0.9154009,3093.9,3093.5,0.002]
[1768117275549,0.00080072,3093.9,3093.5,0.002]
[1768117277455,0.001,3093.6,3093.5,0.002]
[1768117277752,0.001,3093.6,3093.5,0.42518362]
[1768117287544,0.00080072,3093.9,3093.5,0.42518362]
[1768117288562,0.00080072,3093.9,3093.6,0.03232479]
[1768117290141,0.00080088,3094.1,3093.8,0.99709149]
[1768117290752,0.00080096,3094.3,3093.9,0.99709149]
[1768117290955,0.00080096,3094.3,3093.8,0.254]
[1768117291161,0.00080072,3094.5,3093.9,0.00080104]
[1768117291367,0.9154009,3094.5,3093.9,3.23296756]
[1768117291535,0.9154009,3094.5,3094.0,0.67191649]
[1768117295669,0.9154009,3094.5,3094.0,3.9039516]
[1768117296467,0.00080072,3094.5,3094.0,3.9039516]
[1768117300373,0.00080072,3094.5,3094.3,0.002]
[1768117302652,0.00080072,3094.5,3094.3,0.00043946]
[1768117343105,0.00080064,3094.6,3094.3,0.00043946]
[1768117345834,0.00080064,3094.6,3094.3,0.74146406]
[1768117346429,0.00080064,3094.6,3094.3,0.77378154]
[1768117347936,0.00080064,3094.6,3094.3,0.74146406]
[1768117349436,0.93012712,3094.6,3094.3,0.74146406]
[1768117349735,0.93012712,3094.6,3094.3,0.00043946]
[1768117349916,0.00080064,3094.6,3094.3,0.00043946]
[1768117355930,0.92737079,3094.6,3094.3,0.00043946]
[1768117356134,0.00080064,3094.6,3094.3,0.00043946]
[1768117369457,0.92737079,3094.6,3094.3,0.00043946]
[1768117372364,0.00080064,3094.6,3094.3,0.00043946]
[1768117384579,0.94852183,3094.6,3094.3,0.00043946]
[1768117389782,0.00080064,3094.6,3094.3,0.00043946]
[1768117401483,0.94852183,3094.6,3094.3,0.00043946]
[1768117401667,0.94772119,3094.5,3094.1,0.2548008]
[1768117401863,0.94772119,3094.5,3094.1,0.0008008]
[1768117413494,0.00080064,3094.6,3094.1,0.0008008]
[1768117416102,0.001,3094.3,3094.1,0.0008008]
[1768117416299,0.00080064,3094.6,3094.1,0.76532907]
[1768117416601,0.98242088,3094.6,3094.1,0.76532907]
[1768117421600,0.00080064,3094.6,3094.1,3.9972826]
[1768117423506,0.00080064,3094.6,3094.1,4.95330937]
[1768117423669,0.00080064,3094.6,3094.1,3.9972826]
[1768117423874,0.00080064,3094.6,3094.2,0.39992826]
[1768117428300,0.001,3094.3,3094.2,0.39992826]
[1768117428607,0.00080064,3094.6,3094.2,0.39992826]
[1768117439817,0.001,3094.3,3094.2,0.39992826]
[1768117478369,0.001,3094.3,3094.1,0.76532907]
[1768117478760,0.001,3094.3,3094.1,0.0008008]
[1768117493383,0.94931638,3094.5,3094.1,0.0008008]
[1768117493679,0.00080064,3094.6,3094.1,0.0008008]
[1768117494179,0.99800838,3094.6,3094.1,0.0008008]
[1768117504490,0.00080104,3094.9,3094.2,0.92656265]
[1768117504794,0.00080104,3094.9,3094.3,0.54766272]
[1768117504795,0.99361689,3094.9,3094.3,0.54766272]
[1768117505306,0.99361689,3094.9,3094.4,0.03231644]
[1768117505877,0.99361689,3094.9,3094.3,0.54766272]
[1768117506697,0.99361689,3094.9,3094.3,0.254]
[1768117509579,0.99361689,3094.9,3094.2,0.00080072]
[1768117509784,0.99281585,3094.8,3094.2,0.25480072]
[1768117515097,0.99281585,3094.8,3094.2,0.00080072]
[1768117521079,0.99281585,3094.8,3094.5,0.002]
[1768117524313,0.00080104,3094.9,3094.5,0.002]
[1768117524772,0.00080104,3094.9,3094.6,0.92576193]
[1768117525571,0.00080104,3094.9,3094.5,0.002]
[1768117526399,0.00080104,3094.9,3094.6,0.18535239]
[1768117535414,0.94661708,3094.9,3094.6,0.18535239]
[1768117543643,0.94661708,3094.9,3094.2,0.25480072]
[1768117543799,0.94581604,3094.7,3094.2,0.00080072]
[1768117543999,0.94381604,3094.7,3094.2,0.00080072]
[1768117544401,0.94181604,3094.7,3094.2,0.00080072]
[1768117544731,0.94581604,3094.6,3094.2,0.00080072]
[1768117545505,0.94581604,3094.5,3094.2,0.00080072]
[1768117545719,0.94381604,3094.5,3094.2,0.00080072]
[1768117547328,0.94381604,3094.5,3094.2,0.34995555]
[1768117547831,0.2568008,3094.6,3094.2,0.34995555]
[1768117548335,0.94661708,3094.9,3094.2,0.34995555]
[1768117548704,0.94661708,3094.9,3094.2,3.5817368]
[1768117550940,0.00080104,3094.9,3094.2,4.52027897]
[1768117551238,0.00080104,3094.9,3094.3,0.80089972]
[1768117553237,0.00080104,3094.9,3094.3,4.03255689]
[1768117553447,0.00080104,3094.9,3094.4,0.03231644]
[1768117555240,0.00080104,3094.9,3094.4,3.26392782]
[1768117556032,0.00080104,3094.9,3094.4,3.23161138]
[1768117556208,0.00080104,3094.9,3094.5,0.49689302]
[1768117557007,0.001,3094.6,3094.5,0.49689302]
[1768117572030,0.001,3094.6,3094.3,1.05489972]
[1768117574162,0.91624671,3094.6,3094.3,0.254]
[1768117578261,0.91624671,3094.6,3094.2,0.00080072]
[1768117580769,0.91624671,3094.6,3094.5,0.002]
[1768117580969,0.001,3094.6,3094.2,0.00080072]
[1768117581266,0.91624671,3094.6,3094.2,0.00080072]
[1768117582773,0.001,3094.6,3094.2,0.00080072]
[1768117585368,0.91624671,3094.6,3094.2,0.00080072]
[1768117585970,0.001,3094.6,3094.2,0.00080072]
[1768117592982,0.001,3094.6,3094.5,0.002]
[1768117593163,0.001,3094.6,3094.2,0.00080072]
[1768117597767,0.001,3094.6,3094.2,0.44479167]
[1768117598688,0.001,3094.6,3094.2,0.00080072]
[1768117601488,0.001,3094.6,3094.2,0.95134982]
[1768117603495,0.001,3094.6,3094.2,0.00080072]
[1768117605093,0.001,3094.6,3094.5,0.002]
[1768117605274,0.001,3094.6,3094.2,0.00080072]
[1768117605470,0.001,3094.6,3094.2,0.95134982]
[1768117608194,0.001,3094.6,3094.2,1.39557034]
[1768117609598,4.46949629,3094.9,3094.5,0.00080112]
[1768117610170,0.96967747,3094.8,3094.5,0.00080112]
[1768117611399,4.46949629,3094.9,3094.5,0.00080112]
[1768117616203,1.93952334,3095.0,3094.5,0.00080112]
[1768117616871,1.93952334,3095.0,3094.8,0.002]
[1768117618191,0.96967747,3095.0,3094.8,0.002]
[1768117618395,1.93950453,3095.0,3094.8,0.002]
[1768117619199,0.30275817,3094.9,3094.5,0.00280112]
[1768117619373,0.30275817,3094.8,3094.5,0.00280112]
[1768117619576,0.30275817,3094.7,3094.5,0.00280112]
[1768117619777,0.30275817,3094.6,3094.5,0.00280112]
[1768117621180,0.30273905,3094.6,3094.5,0.00280112]
[1768117622707,0.30273905,3094.6,3094.5,0.42395877]
[1768117623078,1.95123728,3095.1,3094.5,0.42395877]
[1768117623308,0.30267392,3095.0,3094.5,0.42395877]
[1768117623509,0.30267392,3094.9,3094.5,0.42395877]
[1768117623676,0.30267392,3094.8,3094.5,0.42395877]
[1768117623875,0.30267392,3094.7,3094.5,0.42395877]
[1768117624075,1.95123728,3095.1,3094.5,0.42395877]
[1768117624307,0.30265951,3095.0,3094.5,0.42395877]
[1768117624500,0.30265951,3094.9,3094.5,0.42395877]
[1768117624693,0.30265951,3094.8,3094.5,0.42395877]
[1768117624893,0.30265951,3094.7,3094.5,0.42395877]
[1768117625094,1.95123728,3095.1,3094.5,0.42395877]
[1768117625293,0.30264895,3095.0,3094.5,0.42395877]
[1768117625504,0.30264895,3094.9,3094.5,0.42395877]
[1768117625693,0.30264895,3094.8,3094.5,0.42395877]
[1768117625894,0.30264895,3094.7,3094.5,0.42395877]
[1768117626098,1.95123728,3095.1,3094.5,0.42395877]
[1768117626289,0.30264064,3095.0,3094.5,0.42395877]
[1768117626478,0.30264064,3094.9,3094.5,0.42395877]
[1768117626678,0.30264064,3094.8,3094.5,0.42395877]
[1768117626879,0.30264064,3094.7,3094.5,0.42395877]
[1768117627101,1.95123728,3095.1,3094.5,0.42395877]
[1768117627378,0.30263402,3095.0,3094.5,0.42395877]
[1768117627573,0.30263402,3094.9,3094.5,0.42395877]
[1768117627820,0.30263402,3094.8,3094.5,0.42395877]
[1768117627994,0.30263402,3094.7,3094.5,1.40300023]
[1768117628319,0.96979884,3095.1,3094.6,0.4634589]
[1768117628485,0.30262765,3095.0,3094.6,0.4634589]
[1768117628687,0.30262765,3094.9,3094.5,0.00280112]
[1768117628887,0.30262765,3094.8,3094.5,0.00280112]
[1768117629129,0.30262765,3094.7,3094.5,0.00280112]
[1768117629421,1.92482126,3095.1,3094.5,0.00280112]
[1768117629624,0.30262219,3095.0,3094.5,0.00280112]
[1768117629915,0.30262219,3094.9,3094.5,0.00280112]
[1768117630122,1.92482126,3095.1,3094.8,0.002]
[1768117630419,0.30261871,3095.0,3094.8,0.002]
[1768117630716,0.30261871,3094.9,3094.8,0.002]
[1768117631611,0.30261392,3094.9,3094.8,0.002]
[1768117634099,0.30261392,3094.9,3094.5,0.00280112]
[1768117634417,0.30261392,3094.8,3094.5,0.00280112]
[1768117634604,0.30261392,3094.7,3094.5,0.00280112]
[1768117634794,1.92482126,3095.1,3094.5,0.42415444]
[1768117634997,0.30260787,3095.0,3094.5,0.42415444]
[1768117635316,0.30260787,3094.9,3094.5,0.42415444]
[1768117635517,0.30260787,3094.8,3094.5,0.42415444]
[1768117635719,0.30260787,3094.7,3094.5,0.42415444]
[1768117636014,1.92482126,3095.1,3094.5,0.42415444]
[1768117636212,0.3026076,3095.0,3094.5,0.42415444]
[1768117636384,0.3026076,3094.9,3094.5,0.42415444]
[1768117636584,0.3026076,3094.8,3094.6,0.46348311]
[1768117636914,0.3026076,3094.7,3094.6,0.46348311]
[1768117639330,0.3026076,3094.7,3094.6,1.44252457]
[1768117640301,0.00080112,3095.2,3094.7,0.97904146]
[1768117640502,0.30253994,3095.1,3094.7,0.97904146]
[1768117640722,0.30253994,3095.0,3094.7,0.97904146]
[1768117641028,0.30253994,3094.9,3094.7,0.97904146]
[1768117641226,0.30253994,3094.8,3094.7,0.97904146]
[1768117643933,0.30253994,3094.8,3094.7,1.44672302]
[1768117644120,0.20096512,3094.8,3094.7,0.97904146]
[1768117644324,0.00080112,3095.2,3094.8,0.97904146]
[1768117647338,0.00080112,3095.2,3094.6,3.48537957]
[1768117653846,0.93786494,3095.2,3094.6,3.48537957]
[1768117654017,0.001,3094.9,3094.6,3.48537957]
[1768117654342,0.001,3094.9,3094.7,0.44672222]
[1768117663954,0.001,3094.9,3094.5,0.00280112]
[1768117674937,0.92239469,3094.9,3094.5,0.00280112]
[1768117675727,0.30266134,3094.8,3094.5,0.00280112]
[1768117675928,0.92239469,3094.9,3094.5,0.00280112]
[1768117676226,1.2240561,3094.8,3094.5,0.00280112]
[1768117676423,0.92139469,3094.8,3094.5,0.00280112]
[1768117678664,0.87139469,3094.8,3094.5,0.00280112]
[1768117684375,0.87139469,3094.8,3094.5,0.35165053]
[1768117693185,0.001,3094.9,3094.5,0.35165053]
[1768117693385,0.302582,3094.8,3094.5,0.35165053]
[1768117693588,0.001,3094.9,3094.5,0.35165053]
[1768117693788,0.30258198,3094.8,3094.5,0.35165053]
[1768117694086,0.001,3094.9,3094.5,0.35165053]
[1768117694289,0.30258239,3094.8,3094.5,0.35165053]
[1768117694464,0.001,3094.9,3094.5,0.35165053]
[1768117694651,0.30257993,3094.8,3094.5,0.35165053]
[1768117694851,0.30257993,3094.7,3094.5,0.35165053]
[1768117695052,0.001,3094.9,3094.6,0.35832947]
[1768117695251,0.30256192,3094.8,3094.5,0.00280112]
[1768117695520,0.30256192,3094.7,3094.5,0.00280112]
[1768117695691,0.91478212,3094.9,3094.5,0.00280112]
[1768117695890,0.30251969,3094.8,3094.5,0.00280112]
[1768117696052,0.30251969,3094.7,3094.5,0.00280112]
[1768117696251,0.91478212,3094.9,3094.5,0.35164564]
[1768117696492,0.30249181,3094.8,3094.5,0.00280112]
[1768117696698,0.30249181,3094.7,3094.5,0.00280112]
[1768117696987,0.91478212,3094.9,3094.5,0.00280112]
[1768117697153,0.30249176,3094.8,3094.5,0.00280112]
[1768117697481,0.30249176,3094.7,3094.5,0.00280112]
[1768117697680,0.91478212,3094.9,3094.5,0.35164564]
[1768117697879,0.30247062,3094.8,3094.5,0.00280112]
[1768117698081,0.30247062,3094.7,3094.5,0.00280112]
[1768117698381,0.91478212,3094.9,3094.5,0.00280112]
[1768117698547,0.30245428,3094.8,3094.5,0.00280112]
[1768117698751,0.30245428,3094.7,3094.5,0.00280112]
[1768117698982,0.91478212,3094.9,3094.5,0.35164564]
[1768117699183,0.30245423,3094.8,3094.5,0.35164564]
[1768117699382,0.30245423,3094.7,3094.5,0.35164564]
[1768117699587,0.91478212,3094.9,3094.5,0.35164564]
[1768117699754,0.30244137,3094.8,3094.5,0.00280112]
[1768117699954,0.30244137,3094.7,3094.5,0.00280112]
[1768117700154,0.91478212,3094.9,3094.5,0.00280112]
[1768117700356,0.30243157,3094.8,3094.5,0.00280112]
[1768117700556,0.30243157,3094.7,3094.5,0.00280112]
[1768117700756,0.91478212,3094.9,3094.5,0.35164564]
[1768117700985,0.30243128,3094.8,3094.5,0.00280112]
[1768117701287,0.30243128,3094.7,3094.5,0.00280112]
[1768117701477,0.91478212,3094.9,3094.5,0.00280112]
[1768117701678,0.30242441,3094.8,3094.5,0.00280112]
[1768117701879,0.30242441,3094.7,3094.5,0.00280112]
[1768117702079,0.91478212,3094.9,3094.5,0.35164564]
[1768117702266,0.30242607,3094.8,3094.5,0.00280112]
[1768117702466,0.30242607,3094.7,3094.5,0.00280112]
[1768117702665,0.91478212,3094.9,3094.5,0.00280112]
[1768117702884,0.30241984,3094.8,3094.5,0.00280112]
[1768117703080,0.30241984,3094.7,3094.5,0.00280112]
[1768117703359,0.91478212,3094.9,3094.5,0.35164564]
[1768117703570,0.30241696,3094.8,3094.5,0.35164564]
[1768117703888,0.30241696,3094.7,3094.5,0.35164564]
[1768117704078,0.91478212,3094.9,3094.5,0.35164564]
[1768117704279,0.30241995,3094.8,3094.5,0.35164564]
[1768117704588,0.30241995,3094.7,3094.5,0.35164564]
[1768117704777,0.91478212,3094.9,3094.5,0.00280112]
[1768117704977,0.30241632,3094.8,3094.5,0.00280112]
[1768117705192,0.30241632,3094.7,3094.5,0.00280112]
[1768117705394,0.91478212,3094.9,3094.5,0.00280112]
[1768117705562,0.30241763,3094.8,3094.5,0.00280112]
[1768117705862,0.30241763,3094.7,3094.5,0.00280112]
[1768117706161,0.91478212,3094.9,3094.5,0.35164564]
[1768117706361,0.30241331,3094.8,3094.5,0.00280112]
[1768117706561,0.30241331,3094.7,3094.5,0.00280112]
[1768117706760,0.91478212,3094.9,3094.5,0.00280112]
[1768117706981,0.30241337,3094.8,3094.5,0.00280112]
[1768117707290,0.30241337,3094.7,3094.5,0.00280112]
[1768117707471,0.91478212,3094.9,3094.5,0.00280112]
[1768117707671,0.30240986,3094.8,3094.5,0.00280112]
[1768117707871,0.91478212,3094.9,3094.5,0.00280112]
[1768117713274,0.91478212,3094.9,3094.8,0.002]
[1768117713474,1.21722956,3094.9,3094.8,0.002]
[1768117717887,0.30344744,3094.9,3094.8,0.002]
[1768117778794,0.30366218,3094.9,3094.8,0.002]
[1768117788102,0.30366218,3094.9,3094.8,0.95873903]
[1768117788308,0.30366218,3094.9,3094.8,0.002]
[1768117794341,0.30366218,3094.9,3094.8,0.91399899]
[1768117796816,0.30366218,3094.9,3094.8,0.002]
[1768117798523,0.30366218,3094.9,3094.8,0.91399899]
[1768117804339,0.30366218,3094.9,3094.8,0.002]
[1768117808232,0.001,3094.9,3094.8,0.002]
[1768117812654,0.001,3094.9,3094.8,0.96668396]
[1768117817218,0.001,3094.9,3094.8,0.002]
[1768117835155,0.30382768,3094.9,3094.8,0.002]
[1768117853705,0.92779853,3094.8,3094.2,0.00080072]
[1768117853905,0.92779853,3094.2,3093.5,0.0028008]
[1768117854802,2.24794781,3094.1,3093.5,3.23537777]
[1768117855008,1.9455956,3094.1,3093.5,3.23537777]
[1768117855305,0.97561803,3094.1,3093.5,3.23537777]
[1768117855495,0.96997757,3094.0,3093.5,3.23537777]
[1768117855871,0.96997757,3094.0,3093.5,0.0028008]
[1768117856276,0.96997757,3094.0,3093.5,0.97199578]
[1768117856471,0.96997757,3094.0,3093.6,0.96919498]
[1768117857574,0.96997757,3094.0,3093.6,4.2016105]
[1768117859298,0.96997757,3094.0,3093.7,0.42132219]
[1768117860511,0.96797757,3094.0,3093.7,0.42132219]
[1768117861816,0.96797757,3094.0,3093.7,0.67532219]
[1768117862812,0.00080104,3094.3,3093.9,0.96919498]
[1768117863007,0.00080104,3094.3,3094.0,1.0015156]
[1768117863412,0.00080104,3094.3,3094.0,0.96919498]
[1768117865416,0.00080104,3094.3,3093.9,3.36148228]
[1768117865616,0.00080104,3094.3,3094.0,0.33614823]
[1768117874525,0.00080104,3094.3,3094.0,4.53121014]
[1768117874992,0.00080104,3094.3,3094.0,1.29916638]
[1768117875189,0.00080104,3094.3,3094.0,4.53122635]
[1768117875493,0.00080104,3094.3,3094.0,1.29916638]
[1768117881925,0.00080104,3094.3,3094.0,0.33614823]
[1768117882110,0.00080104,3094.3,3094.1,0.254]
[1768117883345,0.30260126,3094.2,3094.1,0.254]
[1768117889947,0.30268947,3094.2,3094.1,0.254]
[1768117904342,0.00080104,3094.3,3094.1,0.254]
[1768117904562,0.30280085,3094.2,3094.1,0.254]
[1768117912275,0.30280428,3094.2,3094.1,0.254]
[1768117914685,0.30280428,3094.2,3093.8,3.23226842]
[1768117914986,0.00080104,3094.3,3093.9,0.254]
[1768117914987,0.30280428,3094.1,3093.9,0.254]
[1768117915188,0.95139618,3094.3,3093.9,0.254]
[1768117915483,0.30280705,3094.2,3093.9,0.254]
[1768117915640,0.30280705,3094.1,3093.9,0.254]
[1768117915840,0.95139618,3094.3,3093.9,0.254]
[1768117916038,0.30280694,3094.2,3093.9,0.254]
[1768117916251,0.30280694,3094.1,3093.9,0.254]
[1768117916451,0.95139618,3094.3,3093.9,0.254]
[1768117916670,0.30280683,3094.2,3093.9,0.254]
[1768117916977,0.30280683,3094.1,3093.9,0.254]
[1768117917174,0.95139618,3094.3,3093.9,0.254]
[1768117917346,0.30280705,3094.2,3093.9,0.254]
[1768117917674,0.30280705,3094.1,3093.9,0.254]
[1768117917871,0.95139618,3094.3,3093.9,0.254]
[1768117918173,0.30280716,3094.2,3093.9,0.254]
[1768117918390,0.30280716,3094.1,3093.9,0.254]
[1768117918595,0.95139618,3094.3,3093.9,0.254]
[1768117918885,0.30280749,3094.2,3093.9,0.254]
[1768117919095,0.30280753,3094.2,3093.9,0.254]
[1768117919238,0.30280753,3094.1,3093.9,0.254]
[1768117919441,0.95139618,3094.3,3093.9,0.254]
[1768117919677,0.30280742,3094.2,3093.9,0.254]
[1768117919970,0.30280742,3094.1,3093.9,0.254]
[1768117920172,0.95139618,3094.3,3093.9,0.254]
[1768117920371,0.30280775,3094.2,3093.9,0.254]
[1768117920677,0.30280775,3094.1,3093.9,0.254]
[1768117920886,0.95139618,3094.3,3093.9,0.254]
[1768117921080,0.30280757,3094.2,3093.9,0.254]
[1768117921390,0.30280757,3094.1,3093.9,0.254]
[1768117921567,0.95139618,3094.3,3093.9,0.254]
[1768117921879,0.30280735,3094.2,3093.9,0.254]
[1768117922085,0.30280735,3094.1,3093.9,0.254]
[1768117922255,0.95139618,3094.3,3093.9,0.254]
[1768117922455,0.30280735,3094.2,3093.9,0.254]
[1768117922687,0.30280735,3094.1,3093.9,0.254]
[1768117922886,0.95139618,3094.3,3093.9,0.254]
[1768117923059,0.30280738,3094.2,3093.9,0.254]
[1768117923264,0.30280738,3094.1,3093.9,0.254]
[1768117923458,0.95139618,3094.3,3093.9,0.254]
[1768117923758,0.30280759,3094.2,3093.9,0.254]
[1768117923957,0.30280759,3094.1,3093.9,0.254]
[1768117924157,0.95139618,3094.3,3093.9,0.254]
[1768117924386,0.3028087,3094.2,3093.9,0.254]
[1768117924587,0.3028087,3094.1,3093.9,0.254]